[Event "*** Monthly 3|2 Blitz Masters"]
[Site "Chess.com"]
[Date "2014.10.28"]
[Round "7"]
[White "SabinaFoisor"]
[Black "jbj"]
[Result "0-1"]
[WhiteElo "2188"]
[BlackElo "2311"]
[TimeControl "180+2"]
[EndTime "13:16:52 PDT"]
[Termination "jbj won by resignation"]

1. d4 {[%clk 0:02:38.4]} 1... Nf6 {[%clk 0:02:58.1]} 2. c4 {[%clk 0:02:39.3]}
2... e6 {[%clk 0:02:59.1]} 3. Nc3 {[%clk 0:02:40.1]} 3... Bb4 {[%clk 0:02:58.1]}
4. Qc2 {[%clk 0:02:41.3]} 4... d5 {[%clk 0:02:58.8]} 5. Bg5 {[%clk 0:02:36.5]}
5... c5 {[%clk 0:02:57.3]} 6. e3 {[%clk 0:02:35.3]} 6... Nc6 {[%clk 0:02:56]} 7.
Nf3 {[%clk 0:02:29]} 7... h6 {[%clk 0:02:55.6]} 8. Bxf6 {[%clk 0:02:26.2]} 8...
Qxf6 {[%clk 0:02:55.3]} 9. cxd5 {[%clk 0:02:11.1]} 9... exd5 {[%clk 0:02:50.8]}
10. a3 {[%clk 0:02:08.9]} 10... Bxc3+ {[%clk 0:02:39.6]} 11. bxc3 {[%clk
0:02:09.8]} 11... O-O {[%clk 0:02:32.6]} 12. dxc5 {[%clk 0:02:04.4]} 12... Qe7
{[%clk 0:02:25.1]} 13. Bd3 {[%clk 0:01:59.2]} 13... Qxc5 {[%clk 0:02:24.7]} 14.
O-O {[%clk 0:01:59.6]} 14... Bg4 {[%clk 0:02:22.9]} 15. Nd4 {[%clk 0:01:57]}
15... Rac8 {[%clk 0:02:21.5]} 16. Qd2 {[%clk 0:01:38.3]} 16... Bd7 {[%clk
0:02:08.3]} 17. h3 {[%clk 0:01:29.2]} 17... Na5 {[%clk 0:02:07.5]} 18. Qe2
{[%clk 0:01:11.4]} 18... a6 {[%clk 0:02:03.4]} 19. Rac1 {[%clk 0:01:08.5]} 19...
Rfe8 {[%clk 0:02:00.4]} 20. Qf3 {[%clk 0:01:07.1]} 20... Nc6 {[%clk 0:01:34.9]}
21. Nf5 {[%clk 0:01:02.3]} 21... Ne5 {[%clk 0:01:29.6]} 22. Qg3 {[%clk
0:00:51.7]} 22... Bxf5 {[%clk 0:01:27.3]} 23. Bxf5 {[%clk 0:00:52.4]} 23... Rc7
{[%clk 0:01:25.8]} 24. Rfd1 {[%clk 0:00:47.9]} 24... Rce7 {[%clk 0:01:20.2]} 25.
Rc2 {[%clk 0:00:43.3]} 25... Nc4 {[%clk 0:01:19.3]} 26. a4 {[%clk 0:00:41.2]}
26... Qc6 {[%clk 0:01:08.5]} 27. Rd4 {[%clk 0:00:40.3]} 27... Qxa4 {[%clk
0:01:00.4]} 28. Rg4 {[%clk 0:00:39]} 28... f6 {[%clk 0:00:55]} 29. Qh4 {[%clk
0:00:39.4]} 29... Qa1+ {[%clk 0:00:49.3]} 30. Kh2 {[%clk 0:00:39.6]} 30... Ne5
{[%clk 0:00:48.9]} 31. Rg3 {[%clk 0:00:36.2]} 31... Kf8 {[%clk 0:00:47.2]} 32.
Qd4 {[%clk 0:00:18.9]} 32... Qa5 {[%clk 0:00:44.9]} 33. Rb2 {[%clk 0:00:18.5]}
33... Nc6 {[%clk 0:00:43.2]} 34. Qd3 {[%clk 0:00:15.6]} 34... Qc5 {[%clk
0:00:39.7]} 35. Bg6 {[%clk 0:00:16.1]} 35... Rd8 {[%clk 0:00:39.8]} 36. Bh5
{[%clk 0:00:11.2]} 36... Re4 {[%clk 0:00:34.5]} 37. Bf3 {[%clk 0:00:12]} 37...
Ne5 {[%clk 0:00:34.9]} 38. Qe2 {[%clk 0:00:07.9]} 38... Nxf3+ {[%clk 0:00:35.4]}
39. Qxf3 {[%clk 0:00:09.3]} 39... b5 {[%clk 0:00:33.1]} 40. Qf5 {[%clk
0:00:09.8]} 40... Qxc3 {[%clk 0:00:28.1]} 41. Qg6 {[%clk 0:00:09.3]} 41... Re7
{[%clk 0:00:25.1]} 42. Rc2 {[%clk 0:00:08.9]} 42... Qe5 {[%clk 0:00:23.5]} 43.
Qh7 {[%clk 0:00:10.3]} 43... Ke8 {[%clk 0:00:17.6]} 44. Qg6+ {[%clk 0:00:06.7]}
44... Kd7 {[%clk 0:00:18.3]} 45. Qg4+ {[%clk 0:00:08]} 45... f5 {[%clk
0:00:17.8]} 46. Qg6 {[%clk 0:00:08.7]} 46... Qe6 {[%clk 0:00:15.2]} 47. Qh5
{[%clk 0:00:09.9]} 47... Rc8 {[%clk 0:00:15.8]} 48. Rd2 {[%clk 0:00:10.3]} 48...
Rc4 {[%clk 0:00:16]} 49. Rg6 {[%clk 0:00:09.6]} 49... Qe5+ {[%clk 0:00:16]} 50.
f4 {[%clk 0:00:08.6]} 50... Rxf4 {[%clk 0:00:14.3]} 51. exf4 {[%clk 0:00:06]}
51... Qxf4+ {[%clk 0:00:15.5]} 52. Rg3 {[%clk 0:00:07.5]} 52... Qxd2 {[%clk
0:00:16.3]} 53. Qxf5+ {[%clk 0:00:08.8]} 53... Kc6 {[%clk 0:00:17.5]} 54. Rg6+
{[%clk 0:00:09.3]} 54... Kc5 {[%clk 0:00:16.2]} 55. Qc8+ {[%clk 0:00:10.2]}
55... Kb4 {[%clk 0:00:16]} 56. Qxa6 {[%clk 0:00:10.6]} 56... Qf4+ {[%clk
0:00:16.1]} 57. Rg3 {[%clk 0:00:11.6]} 57... Re3 {[%clk 0:00:15.9]} 58. Qg6
{[%clk 0:00:09.2]} 58... Qxg3+ {[%clk 0:00:15.9]} 59. Qxg3 {[%clk 0:00:10.3]}
59... Rxg3 {[%clk 0:00:17.1]} 60. Kxg3 {[%clk 0:00:12]} 60... d4 {[%clk
0:00:18.4]} 61. Kf3 {[%clk 0:00:13.3]} 61... Kc3 {[%clk 0:00:19.6]} 62. Ke2
{[%clk 0:00:14]} 62... Kc2 {[%clk 0:00:20.9]} 0-1

[Event "*** Monthly 3|2 Blitz Masters"]
[Site "Chess.com"]
[Date "2014.10.28"]
[Round "7"]
[White "mat_kolosowski"]
[Black "Alexander_Donchenko"]
[Result "1/2-1/2"]
[WhiteElo "2343"]
[BlackElo "2328"]
[TimeControl "180+2"]
[EndTime "13:17:59 PDT"]
[Termination "Game drawn by repetition"]

1. d4 {[%clk 0:03:00]} 1... d5 {[%clk 0:02:58.7]} 2. c4 {[%clk 0:03:01.3]} 2...
dxc4 {[%clk 0:02:59.7]} 3. e3 {[%clk 0:03:01.8]} 3... e6 {[%clk 0:02:59.8]} 4.
Bxc4 {[%clk 0:03:02.5]} 4... c5 {[%clk 0:03:00.9]} 5. Nf3 {[%clk 0:03:03.8]}
5... Nf6 {[%clk 0:03:02.1]} 6. O-O {[%clk 0:03:05.2]} 6... a6 {[%clk 0:03:03.4]}
7. Bb3 {[%clk 0:03:06.2]} 7... Nc6 {[%clk 0:03:03.7]} 8. Qe2 {[%clk 0:03:06.8]}
8... Qc7 {[%clk 0:03:04.6]} 9. Nc3 {[%clk 0:03:06.1]} 9... Bd6 {[%clk
0:03:05.5]} 10. dxc5 {[%clk 0:03:02]} 10... Bxc5 {[%clk 0:03:07.4]} 11. e4
{[%clk 0:03:03.3]} 11... Ng4 {[%clk 0:03:07.6]} 12. g3 {[%clk 0:02:52]} 12...
O-O {[%clk 0:03:07.3]} 13. Bf4 {[%clk 0:02:46.6]} 13... Nge5 {[%clk 0:03:08]}
14. Nxe5 {[%clk 0:02:42.7]} 14... Nxe5 {[%clk 0:03:08.4]} 15. Rac1 {[%clk
0:02:41.8]} 15... Bd7 {[%clk 0:02:38]} 16. Rfd1 {[%clk 0:02:11.8]} 16... Bc6
{[%clk 0:02:33.6]} 17. Qh5 {[%clk 0:02:08.6]} 17... f6 {[%clk 0:02:25]} 18.
Bxe6+ {[%clk 0:02:07.1]} 18... Kh8 {[%clk 0:02:26]} 19. Bf5 {[%clk 0:02:01.5]}
19... g5 {[%clk 0:02:12]} 20. Nd5 {[%clk 0:01:54.2]} 20... Bxd5 {[%clk 0:02:02]}
21. Rxd5 {[%clk 0:01:50.2]} 21... gxf4 {[%clk 0:01:57.1]} 22. Rdxc5 {[%clk
0:01:47.8]} 22... Qg7 {[%clk 0:01:57.7]} 23. Rc7 {[%clk 0:01:43]} 23... Rf7
{[%clk 0:01:55.3]} 24. Rxf7 {[%clk 0:01:43.6]} 24... Qxf7 {[%clk 0:01:48.7]} 25.
Qxf7 {[%clk 0:01:43.8]} 25... Nxf7 {[%clk 0:01:50.6]} 26. Rc7 {[%clk 0:01:45.3]}
26... Nd6 {[%clk 0:01:41.4]} 27. Rxh7+ {[%clk 0:01:32.9]} 27... Kg8 {[%clk
0:01:42]} 28. Rd7 {[%clk 0:01:34.8]} 28... Nxf5 {[%clk 0:01:35.3]} 29. exf5
{[%clk 0:01:35.8]} 29... fxg3 {[%clk 0:01:33.9]} 30. hxg3 {[%clk 0:01:34.2]}
30... b5 {[%clk 0:01:34.7]} 31. Kg2 {[%clk 0:01:30.3]} 31... a5 {[%clk
0:01:30.1]} 32. Rb7 {[%clk 0:01:26.2]} 32... b4 {[%clk 0:01:30.4]} 33. g4 {[%clk
0:01:25.3]} 33... Rd8 {[%clk 0:01:29.5]} 34. Rb5 {[%clk 0:01:22.5]} 34... Rd2
{[%clk 0:01:28.7]} 35. Rxa5 {[%clk 0:01:22.5]} 35... Rxb2 {[%clk 0:01:29.2]} 36.
Ra7 {[%clk 0:01:19.5]} 36... Rc2 {[%clk 0:01:27.2]} 37. Kg3 {[%clk 0:01:18.5]}
37... Kf8 {[%clk 0:01:22.3]} 38. f3 {[%clk 0:01:19.1]} 38... Rc3 {[%clk
0:01:17.3]} 39. Rb7 {[%clk 0:01:19.7]} 39... Ra3 {[%clk 0:01:15.7]} 40. Rxb4
{[%clk 0:01:19.8]} 40... Rxa2 {[%clk 0:01:16.9]} 41. Rb6 {[%clk 0:01:04.3]}
41... Kf7 {[%clk 0:01:16.9]} 42. Rb7+ {[%clk 0:01:05.5]} 42... Kf8 {[%clk
0:01:18]} 43. f4 {[%clk 0:00:43.6]} 43... Ra3+ {[%clk 0:01:03.2]} 44. Kg2 {[%clk
0:00:37.6]} 44... Ra2+ {[%clk 0:01:03.5]} 45. Kg3 {[%clk 0:00:38.9]} 45... Ra3+
{[%clk 0:01:04.6]} 46. Kg2 {[%clk 0:00:40.3]} 46... Ra2+ {[%clk 0:01:05.8]} 47.
Kf3 {[%clk 0:00:41.6]} 47... Ra3+ {[%clk 0:01:06.5]} 48. Ke4 {[%clk 0:00:42.6]}
48... Ra4+ {[%clk 0:01:07.2]} 49. Ke3 {[%clk 0:00:42.7]} 49... Ra3+ {[%clk
0:01:07.7]} 50. Ke4 {[%clk 0:00:43.8]} 50... Ra4+ {[%clk 0:01:08.8]} 51. Kd5
{[%clk 0:00:44.9]} 51... Rxf4 {[%clk 0:01:09.5]} 52. Ke6 {[%clk 0:00:46]} 52...
Rxg4 {[%clk 0:01:10.1]} 53. Kxf6 {[%clk 0:00:47.2]} 53... Kg8 {[%clk 0:01:10.5]}
54. Rb8+ {[%clk 0:00:47.3]} 54... Kh7 {[%clk 0:01:11.2]} 55. Ke7 {[%clk
0:00:46.4]} 55... Re4+ {[%clk 0:00:59.1]} 56. Kf7 {[%clk 0:00:46.8]} 56... Ra4
{[%clk 0:00:55.8]} 57. Re8 {[%clk 0:00:45.4]} 57... Ra7+ {[%clk 0:00:50.2]} 58.
Re7 {[%clk 0:00:46]} 58... Ra8 {[%clk 0:00:51.3]} 59. f6 {[%clk 0:00:47.2]}
59... Kh6 {[%clk 0:00:49.4]} 60. Rc7 {[%clk 0:00:46]} 60... Rb8 {[%clk
0:00:47.3]} 61. Ke7 {[%clk 0:00:47]} 61... Kg6 {[%clk 0:00:47.5]} 62. Ra7 {[%clk
0:00:24.3]} 62... Kh6 {[%clk 0:00:21.9]} 63. Ke6 {[%clk 0:00:19.7]} 63... Kg6
{[%clk 0:00:20.9]} 64. Rg7+ {[%clk 0:00:20]} 64... Kh6 {[%clk 0:00:22]} 65. Rg2
{[%clk 0:00:21.6]} 65... Rb6+ {[%clk 0:00:22.9]} 66. Ke7 {[%clk 0:00:22.6]}
66... Rb7+ {[%clk 0:00:24.1]} 67. Kd6 {[%clk 0:00:23.7]} 67... Rb6+ {[%clk
0:00:25.4]} 68. Ke5 {[%clk 0:00:24.5]} 68... Rb5+ {[%clk 0:00:26.6]} 69. Ke4
{[%clk 0:00:24]} 69... Rb4+ {[%clk 0:00:24.4]} 70. Kd5 {[%clk 0:00:25.1]} 70...
Rb5+ {[%clk 0:00:25.6]} 71. Kd6 {[%clk 0:00:14.5]} 71... Rb6+ {[%clk 0:00:26.5]}
72. Ke7 {[%clk 0:00:15.9]} 72... Rb7+ {[%clk 0:00:27.5]} 73. Kd8 {[%clk
0:00:17]} 73... Rb8+ {[%clk 0:00:25.8]} 74. Kd7 {[%clk 0:00:16.9]} 74... Rb7+
{[%clk 0:00:25.8]} 75. Kd6 {[%clk 0:00:18.1]} 75... Rb6+ {[%clk 0:00:26.6]}
1/2-1/2

[Event "*** Monthly 3|2 Blitz Masters"]
[Site "Chess.com"]
[Date "2014.10.28"]
[Round "8"]
[White "vovkcoach"]
[Black "Danesz22"]
[Result "0-1"]
[WhiteElo "2505"]
[BlackElo "2525"]
[TimeControl "180+2"]
[EndTime "13:23:55 PDT"]
[Termination "Danesz22 won by resignation"]

1. e4 {[%clk 0:03:00]} 1... c6 {[%clk 0:02:56.6]} 2. d4 {[%clk 0:02:59.3]} 2...
d5 {[%clk 0:02:57.4]} 3. Nc3 {[%clk 0:03:01.2]} 3... dxe4 {[%clk 0:02:57.8]} 4.
Nxe4 {[%clk 0:03:03.1]} 4... Bf5 {[%clk 0:02:58.7]} 5. Ng3 {[%clk 0:03:03.6]}
5... Bg6 {[%clk 0:02:59.7]} 6. h4 {[%clk 0:03:02.4]} 6... h6 {[%clk 0:03:00.1]}
7. Nf3 {[%clk 0:03:03.9]} 7... Nd7 {[%clk 0:03:00.4]} 8. h5 {[%clk 0:03:04.8]}
8... Bh7 {[%clk 0:03:01.4]} 9. Bd3 {[%clk 0:03:06.3]} 9... Bxd3 {[%clk
0:03:02.1]} 10. Qxd3 {[%clk 0:03:08.2]} 10... Ngf6 {[%clk 0:03:02.8]} 11. Bf4
{[%clk 0:03:07.3]} 11... e6 {[%clk 0:02:58.8]} 12. O-O-O {[%clk 0:03:07.8]}
12... Be7 {[%clk 0:02:58.9]} 13. Kb1 {[%clk 0:02:56.5]} 13... O-O {[%clk
0:02:55]} 14. Ne2 {[%clk 0:02:54.6]} 14... c5 {[%clk 0:02:34.3]} 15. Ne5 {[%clk
0:02:12.8]} 15... Nxe5 {[%clk 0:02:22.8]} 16. Bxe5 {[%clk 0:02:10.4]} 16... Nd7
{[%clk 0:02:00.6]} 17. Qe4 {[%clk 0:02:01.2]} 17... Nxe5 {[%clk 0:01:52.9]} 18.
dxe5 {[%clk 0:02:03.1]} 18... Qc7 {[%clk 0:01:53.5]} 19. c3 {[%clk 0:01:48.4]}
19... Rad8 {[%clk 0:01:52.9]} 20. Kc2 {[%clk 0:01:49.4]} 20... b5 {[%clk
0:01:52.4]} 21. a4 {[%clk 0:01:45.1]} 21... b4 {[%clk 0:01:48.6]} 22. Rxd8
{[%clk 0:01:40.4]} 22... Rxd8 {[%clk 0:01:48.5]} 23. Rd1 {[%clk 0:01:37.8]}
23... Rxd1 {[%clk 0:01:48.5]} 24. Kxd1 {[%clk 0:01:38.4]} 24... Qd7+ {[%clk
0:01:49.4]} 25. Kc1 {[%clk 0:01:32.6]} 25... Qxa4 {[%clk 0:01:45.7]} 26. Qa8+
{[%clk 0:01:26.9]} 26... Bf8 {[%clk 0:01:46.1]} 27. Qb7 {[%clk 0:01:28.8]} 27...
b3 {[%clk 0:01:40.5]} 28. Kd2 {[%clk 0:01:10.6]} 28... Qa2 {[%clk 0:01:40.7]}
29. Nc1 {[%clk 0:00:48.3]} 29... Qxb2+ {[%clk 0:01:40.7]} 0-1

[Event "*** Monthly 3|2 Blitz Masters"]
[Site "Chess.com"]
[Date "2014.10.28"]
[Round "8"]
[White "SabinaFoisor"]
[Black "JamesColeman"]
[Result "1-0"]
[WhiteElo "2259"]
[BlackElo "2291"]
[TimeControl "180+2"]
[EndTime "13:24:35 PDT"]
[Termination "SabinaFoisor won by resignation"]

1. d4 {[%clk 0:03:00]} 1... Nf6 {[%clk 0:02:58.8]} 2. c4 {[%clk 0:02:58.2]} 2...
e6 {[%clk 0:03:00]} 3. Nc3 {[%clk 0:02:57.4]} 3... Bb4 {[%clk 0:03:01.5]} 4. Qc2
{[%clk 0:02:58.1]} 4... Nc6 {[%clk 0:03:02]} 5. Nf3 {[%clk 0:02:57.1]} 5... d6
{[%clk 0:03:02.9]} 6. Bd2 {[%clk 0:02:57.1]} 6... Qe7 {[%clk 0:03:00.2]} 7. a3
{[%clk 0:02:57.4]} 7... Bxc3 {[%clk 0:03:00.2]} 8. Bxc3 {[%clk 0:02:59]} 8... e5
{[%clk 0:02:58.2]} 9. d5 {[%clk 0:03:00.2]} 9... Nb8 {[%clk 0:02:58.9]} 10. e3
{[%clk 0:03:01.5]} 10... a5 {[%clk 0:02:59.6]} 11. b4 {[%clk 0:03:00.9]} 11...
axb4 {[%clk 0:03:00.1]} 12. axb4 {[%clk 0:03:02.5]} 12... Rxa1+ {[%clk 0:03:02]}
13. Bxa1 {[%clk 0:03:03.7]} 13... O-O {[%clk 0:03:00.9]} 14. Nd2 {[%clk
0:03:03.1]} 14... Na6 {[%clk 0:03:02]} 15. Bc3 {[%clk 0:03:01.7]} 15... Bd7
{[%clk 0:02:59.5]} 16. Bd3 {[%clk 0:03:00.1]} 16... Ra8 {[%clk 0:02:58.6]} 17.
O-O {[%clk 0:03:00.3]} 17... c6 {[%clk 0:02:50.4]} 18. dxc6 {[%clk 0:02:48]}
18... bxc6 {[%clk 0:02:52.3]} 19. Ra1 {[%clk 0:02:48.1]} 19... Nc7 {[%clk
0:02:51.6]} 20. Rxa8+ {[%clk 0:02:47.6]} 20... Nxa8 {[%clk 0:02:53.5]} 21. Qa4
{[%clk 0:02:47.8]} 21... Qd8 {[%clk 0:02:49.4]} 22. c5 {[%clk 0:02:46.7]} 22...
dxc5 {[%clk 0:02:46.7]} 23. bxc5 {[%clk 0:02:47.3]} 23... Nc7 {[%clk 0:02:47.2]}
24. Bxe5 {[%clk 0:02:46.1]} 24... Nb5 {[%clk 0:02:41.6]} 25. Bxf6 {[%clk
0:02:37.1]} 25... gxf6 {[%clk 0:02:35.2]} 26. Qh4 {[%clk 0:02:33.8]} 26... Bf5
{[%clk 0:02:02.9]} 27. Bxf5 {[%clk 0:02:31.6]} 27... Qxd2 {[%clk 0:02:04]} 28.
h3 {[%clk 0:02:17.1]} 28... Qc1+ {[%clk 0:02:02.8]} 29. Kh2 {[%clk 0:02:17.1]}
29... Qxc5 {[%clk 0:02:04.7]} 30. Bxh7+ {[%clk 0:01:51.1]} 30... Kg7 {[%clk
0:02:05.5]} 31. Be4 {[%clk 0:01:48.9]} 31... Nd6 {[%clk 0:02:05.1]} 32. Bf3
{[%clk 0:01:31.5]} 32... Qe5+ {[%clk 0:02:04.4]} 33. g3 {[%clk 0:01:31.7]} 33...
c5 {[%clk 0:02:05.1]} 34. Qg4+ {[%clk 0:01:33]} 34... Kf8 {[%clk 0:02:06]} 35.
h4 {[%clk 0:01:32.7]} 35... f5 {[%clk 0:02:07.1]} 36. Qg5 {[%clk 0:01:31.9]}
36... Qe7 {[%clk 0:01:58.3]} 37. Qh6+ {[%clk 0:01:28.5]} 37... Ke8 {[%clk
0:01:53.4]} 38. h5 {[%clk 0:01:29.6]} 38... Qe6 {[%clk 0:01:52.7]} 39. Qh8+
{[%clk 0:01:29.6]} 39... Ke7 {[%clk 0:01:53.8]} 40. h6 {[%clk 0:01:22.1]} 40...
c4 {[%clk 0:01:53.8]} 41. h7 {[%clk 0:01:17.1]} 41... Qh6+ {[%clk 0:01:54.9]}
42. Kg2 {[%clk 0:01:17.3]} 42... c3 {[%clk 0:01:53.5]} 43. Qe5+ {[%clk
0:01:15.9]} 43... Kd7 {[%clk 0:01:54.2]} 44. h8=Q {[%clk 0:01:14.9]} 1-0

[Event "*** Monthly 3|2 Blitz Masters"]
[Site "Chess.com"]
[Date "2014.10.28"]
[Round "8"]
[White "AlmirDzhumaev"]
[Black "brauliocuarta"]
[Result "0-1"]
[WhiteElo "2179"]
[BlackElo "1982"]
[TimeControl "180+2"]
[EndTime "13:26:16 PDT"]
[Termination "brauliocuarta won by checkmate"]

1. e4 {[%clk 0:02:58.2]} 1... c5 {[%clk 0:02:58.2]} 2. Nc3 {[%clk 0:02:58.8]}
2... e6 {[%clk 0:02:59]} 3. g3 {[%clk 0:03:00.2]} 3... g6 {[%clk 0:02:55.9]} 4.
Bg2 {[%clk 0:02:59.8]} 4... Bg7 {[%clk 0:02:57.6]} 5. d3 {[%clk 0:02:59.9]} 5...
Nc6 {[%clk 0:02:59]} 6. Be3 {[%clk 0:03:00.8]} 6... d6 {[%clk 0:03:00.5]} 7. Qd2
{[%clk 0:03:00.5]} 7... h6 {[%clk 0:02:59.7]} 8. Nd1 {[%clk 0:02:50.4]} 8... Rb8
{[%clk 0:02:42]} 9. a4 {[%clk 0:02:47.1]} 9... a6 {[%clk 0:02:21.4]} 10. a5
{[%clk 0:02:35.2]} 10... b5 {[%clk 0:02:20.9]} 11. axb6 {[%clk 0:02:33.7]} 11...
Rxb6 {[%clk 0:02:15.2]} 12. c3 {[%clk 0:02:31.9]} 12... Nge7 {[%clk 0:02:12.2]}
13. Ne2 {[%clk 0:02:32]} 13... Ne5 {[%clk 0:02:00.4]} 14. h3 {[%clk 0:02:29]}
14... c4 {[%clk 0:01:42.2]} 15. Bxb6 {[%clk 0:02:27]} 15... Qxb6 {[%clk
0:01:44.1]} 16. dxc4 {[%clk 0:02:03.3]} 16... Nxc4 {[%clk 0:01:44.4]} 17. Qc2
{[%clk 0:01:59.6]} 17... O-O {[%clk 0:01:27.6]} 18. O-O {[%clk 0:02:00.1]} 18...
e5 {[%clk 0:01:25.9]} 19. Kh2 {[%clk 0:01:45.3]} 19... f5 {[%clk 0:01:24.5]} 20.
b3 {[%clk 0:01:38.3]} 20... Na5 {[%clk 0:01:22.7]} 21. Rb1 {[%clk 0:01:19.8]}
21... Be6 {[%clk 0:01:19]} 22. c4 {[%clk 0:01:19.7]} 22... Nac6 {[%clk
0:01:17.8]} 23. Ndc3 {[%clk 0:01:13.7]} 23... Nd4 {[%clk 0:01:09.2]} 24. Nxd4
{[%clk 0:01:13.2]} 24... exd4 {[%clk 0:01:11.1]} 25. Nd5 {[%clk 0:01:13]} 25...
Bxd5 {[%clk 0:01:04.1]} 26. exd5 {[%clk 0:01:11.5]} 26... f4 {[%clk 0:01:05.8]}
27. Be4 {[%clk 0:01:10]} 27... Nf5 {[%clk 0:00:57.2]} 28. g4 {[%clk 0:01:10.4]}
28... Nh4 {[%clk 0:00:52.7]} 29. Bxg6 {[%clk 0:01:09.7]} 29... f3 {[%clk
0:00:54.3]} 30. Rfe1 {[%clk 0:01:00.9]} 30... Qd8 {[%clk 0:00:51]} 31. Re6
{[%clk 0:00:58.8]} 31... Qg5 {[%clk 0:00:44.9]} 32. Qe4 {[%clk 0:00:53.6]} 32...
Be5+ {[%clk 0:00:40.2]} 33. Kg1 {[%clk 0:00:50.5]} 33... Rf4 {[%clk 0:00:32.5]}
34. Bh7+ {[%clk 0:00:38.5]} 34... Kg7 {[%clk 0:00:20.8]} 35. Qd3 {[%clk
0:00:24]} 35... Rxg4+ {[%clk 0:00:18.8]} 36. Kf1 {[%clk 0:00:25.4]} 36... Rg1#
{[%clk 0:00:19]} 0-1

[Event "*** Monthly 3|2 Blitz Masters"]
[Site "Chess.com"]
[Date "2014.10.28"]
[Round "8"]
[White "exoticprincess"]
[Black "GMNeiksans"]
[Result "1-0"]
[WhiteElo "2757"]
[BlackElo "2503"]
[TimeControl "180+2"]
[EndTime "13:27:09 PDT"]
[Termination "exoticprincess won by resignation"]

1. b3 {[%clk 0:03:00]} 1... d5 {[%clk 0:02:58.3]} 2. Bb2 {[%clk 0:03:00.5]} 2...
Bg4 {[%clk 0:02:59.2]} 3. f3 {[%clk 0:03:01.1]} 3... Bf5 {[%clk 0:02:58.3]} 4.
e3 {[%clk 0:03:01.7]} 4... Nf6 {[%clk 0:02:53.9]} 5. g4 {[%clk 0:03:02.3]} 5...
Bg6 {[%clk 0:02:52.7]} 6. h4 {[%clk 0:03:03.2]} 6... h6 {[%clk 0:02:45.9]} 7. d4
{[%clk 0:03:04]} 7... c5 {[%clk 0:02:42]} 8. Bd3 {[%clk 0:03:04.1]} 8... Bxd3
{[%clk 0:02:39.7]} 9. Qxd3 {[%clk 0:03:03.4]} 9... cxd4 {[%clk 0:02:36.7]} 10.
exd4 {[%clk 0:03:03.4]} 10... Nc6 {[%clk 0:02:35.7]} 11. Ne2 {[%clk 0:03:04.2]}
11... g6 {[%clk 0:02:29.2]} 12. Nbc3 {[%clk 0:03:03.5]} 12... Qa5 {[%clk
0:02:23.6]} 13. a3 {[%clk 0:02:52.1]} 13... Bg7 {[%clk 0:02:20.3]} 14. O-O-O
{[%clk 0:02:52.3]} 14... e6 {[%clk 0:02:13.6]} 15. Kb1 {[%clk 0:02:52.9]} 15...
O-O-O {[%clk 0:02:12.7]} 16. Qe3 {[%clk 0:02:34.1]} 16... h5 {[%clk 0:02:06.3]}
17. Rdg1 {[%clk 0:02:17.6]} 17... Qc7 {[%clk 0:01:58.8]} 18. Nf4 {[%clk
0:02:12.2]} 18... Kb8 {[%clk 0:01:33]} 19. Nce2 {[%clk 0:01:55.8]} 19... Bf8
{[%clk 0:01:20.1]} 20. Nd3 {[%clk 0:01:54.6]} 20... hxg4 {[%clk 0:01:02.2]} 21.
fxg4 {[%clk 0:01:54.5]} 21... Ne4 {[%clk 0:01:03.6]} 22. Rf1 {[%clk 0:01:34.3]}
22... Bh6 {[%clk 0:01:03.7]} 23. g5 {[%clk 0:01:34.1]} 23... Bg7 {[%clk
0:01:04.9]} 24. Rf4 {[%clk 0:01:14.2]} 24... Nd6 {[%clk 0:01:03]} 25. Ng3 {[%clk
0:01:07.8]} 25... Nb5 {[%clk 0:00:54.3]} 26. h5 {[%clk 0:01:02.5]} 26... Bxd4
{[%clk 0:00:41.8]} 27. Rxd4 {[%clk 0:00:48.4]} 27... Nbxd4 {[%clk 0:00:43]} 28.
h6 {[%clk 0:00:42.9]} 28... Rh7 {[%clk 0:00:27.3]} 29. Bxd4 {[%clk 0:00:38.1]}
29... Nxd4 {[%clk 0:00:28.2]} 30. Qxd4 {[%clk 0:00:40]} 30... Qxg3 {[%clk
0:00:29.4]} 31. Qf6 {[%clk 0:00:41]} 31... Qc7 {[%clk 0:00:27.1]} 32. Rf1 {[%clk
0:00:38.1]} 32... Re8 {[%clk 0:00:24.4]} 33. Ne5 {[%clk 0:00:37.9]} 33... Qe7
{[%clk 0:00:17.4]} 34. Nxf7 {[%clk 0:00:32.1]} 34... Qxf6 {[%clk 0:00:18.7]} 35.
Rxf6 {[%clk 0:00:33.7]} 35... Rf8 {[%clk 0:00:15.6]} 36. Ne5 {[%clk 0:00:34.6]}
36... Rxf6 {[%clk 0:00:16.5]} 37. gxf6 {[%clk 0:00:36.5]} 37... Rxh6 {[%clk
0:00:08.5]} 38. f7 {[%clk 0:00:38.4]} 38... Rh1+ {[%clk 0:00:08.6]} 39. Kb2
{[%clk 0:00:39.6]} 39... Rf1 {[%clk 0:00:07.5]} 40. f8=Q+ {[%clk 0:00:39.9]}
40... Rxf8 {[%clk 0:00:08.5]} 41. Nd7+ {[%clk 0:00:41.8]} 41... Kc7 {[%clk
0:00:09.8]} 42. Nxf8 {[%clk 0:00:43.7]} 42... Kd6 {[%clk 0:00:10.1]} 43. Nxg6
{[%clk 0:00:45.3]} 43... e5 {[%clk 0:00:11.7]} 44. Kc3 {[%clk 0:00:46.9]} 1-0